{"text_format":"1","workbook":"xlsx","n_sheets":4,"sheets":["Tabelle4","Tabelle1","Tabelle2","Tabelle3"],"not_rendered":{"charts":0,"images":1,"macros":0,"external_links":0,"defined_names":0,"comments":0,"pivot_tables":0},"unopened":[],"bounds":{"document_bytes":16777216,"sheet_cells":100000,"rows_first":2000,"rows_last":500,"rows_between":2000,"halvings":0,"cell_chars":16384,"cell_head_chars":4096},"cells_cut":0,"cells_raw":0,"read":"whole","date_system":"1900"}

{"sheet":"Tabelle4","index":0,"n_rows":0,"n_cols":0,"rows_kept":0,"cut":false,"hidden":true,"merged":[]}

{"sheet":"Tabelle1","index":1,"n_rows":235,"n_cols":4,"rows_kept":235,"cut":false,"hidden":false,"merged":[]}
[]
[]
[]
[]
[]
[]
[null,"budget di: "]
[]
[]
[null,"Entrate"]
[null,null," € mensile *","annotazioni"]
[null,"stipendio (netto)"]
[null,"tredicesima e quattordicesima (netto)"]
[null,"stipendio coniuge (netto)"]
[null,"tredicesima e quattordicesima coniuge (netto)"]
[null,"figli (contribuiscono)"]
[null,"pensione "]
[null,"tredicesima pensione"]
[null,"pensione coniuge"]
[null,"tredicesima pensione coniuge"]
[null,"indennità di disoccupazione"]
[null,"inserimento al minimo vitale"]
[null,"contributo canone locazione"]
[null,"assegni familiari provincia"]
[null,"assegni familiari regione"]
[null,"assegni familiari statali"]
[null,"alimenti/mantenimento"]
[null,"assegni di cura"]
[null,"stipendi scolastici"]
[null,"aiuto da terzi"]
[null,"reddito per locazione mobili"]
[null,"altri redditi"]
[null,"somma entrate",{"$f":"SUM(C12:C32)","v":0}]
[]
[null,"* Attenzione: calcolate le entrate e le spese, che non risultano ogni mese, "]
[null,"in un’ importo mensile medio."]
[]
[]
[]
[]
[]
[]
[]
[]
[null,"Spese fisse"]
[]
[null,"abitare","€ mensile *","annotazioni"]
[null,"affitto"]
[null,"spese condominiali"]
[null,"spese di manuntenzione"]
[null,"corrente, canone TV"]
[null,"(tele)riscaldamento, gas, legna ecc."]
[null,"acqua, immondizie "]
[null,"rata mutuo immobile"]
[null,"somma abitare",{"$f":"SUM(C48:C54)","v":0}]
[]
[null,"mobilitá","€ mensile *","annotazioni"]
[null,"autoveicolo - assicurazione"]
[null,"autoveicolo - bollo"]
[null,"autoveicolo - carburante"]
[null,"moto - assicurazione"]
[null,"moto - bollo"]
[null,"moto - carburante"]
[null,"spese di riparazioni, revisione"]
[null,"garage, spese parcheggio"]
[null,"rata leasing autoveicolo/moto"]
[null,"contributo aci"]
[null,"telepass, autostrada"]
[null,"somma mobilitá",{"$f":"SUM(C58:C68)","v":0}]
[]
[null,"mezzi pubblici","€ mensile *","annotazioni"]
[null,"abbonamento annuale, biglietto giornaliero"]
[null,"somma mezzi pubblici",{"$f":"SUM(C72)","v":0}]
[]
[null,"comunicazione","€ mensile *","annotazioni"]
[null,"telefono fisso"]
[null,"cellulare"]
[null,"internet"]
[null,"Pay TV, Sky…"]
[null,"somma comunicazione",{"$f":"SUM(C76:C79)","v":0}]
[]
[]
[]
[]
[]
[]
[]
[]
[null,"assicurazioni/previdenza","€ mensile *","annotazioni"]
[null,"assicurazione abitazione"]
[null,"assicurazione infortunio"]
[null,"assicurazione malattia"]
[null,"assicurazione responsabilità civile"]
[null,"polizza vita"]
[null,"previdenza pensionistica"]
[null,"altre forme di assicurazione/previdenza"]
[null,"somma assicurazioni/previdenza",{"$f":"SUM(C90:C96)","v":0}]
[]
[null,"risparmio","€ mensile *","annotazioni"]
[null,"mutuo risparmio casa, azioni, obbligazioni ecc."]
[null,"libretto di risparmio"]
[null,"altre forme di risparmio"]
[null,"somma risparmio",{"$f":"SUM(C100:C102)","v":0}]
[]
[null,"abbonamenti/contributi","€ mensile *","annotazioni"]
[null,"abbonamento giornali"]
[null,"contributi per associazioni, (croce rossa ecc.)"]
[null,"abbonamento teatro"]
[null,"carte stagionali, (scipass ecc.)"]
[null,"altro"]
[null,"somma abbonamenti/contributi",{"$f":"SUM(C106:C110)","v":0}]
[]
[null,"imposte/tributi/tasse","€ mensile *","annotazioni"]
[null,"imposta immobiliare"]
[null,"diversi tributi/tasse"]
[null,"altro"]
[null,"somme imposte/tributi/tasse",{"$f":"SUM(C114:C116)","v":0}]
[]
[]
[]
[]
[]
[]
[]
[]
[]
[]
[]
[]
[null,"figli","€ mensile*","annotazioni"]
[null,"alimenti"]
[null,"babysitter"]
[null,"prima infanzia, asilo, scuola"]
[null,"tasse universitarie"]
[null,"mensa scolastica"]
[null,"paghetta"]
[null,"scuola musica, associazione sportiva ecc."]
[null,"somma figli",{"$f":"SUM(C131:C137)","v":0}]
[]
[null,"debiti","€ mensile *","annotazioni"]
[null,"rate prestito"]
[null,"altre rate, cambiali, revolving ecc."]
[null,"spese contocorrente"]
[null,"spese carta di credito"]
[null,"altro"]
[null,"somma debiti",{"$f":"SUM(C141:C145)","v":0}]
[]
[null,"altro","€ mensile *","annotazioni"]
[null,"mantenimento ex coniuge"]
[null,"altro"]
[null,"somma altro",{"$f":"SUM(C149:C150)","v":0}]
[]
[null,"somma spese fisse",{"$f":"C55+C69+C73+C97+C103+C111+C117+C138+C146+C151","v":0}]
[]
[]
[]
[]
[]
[]
[]
[]
[]
[]
[]
[]
[]
[]
[]
[null,"Spese variabili"]
[]
[null,"abbigliamento","€ mensile *","annotazioni"]
[null,"vestiti"]
[null,"intimo"]
[null,"scarpe"]
[null,"altro"]
[null,"somma abbigliamento",{"$f":"SUM(C172:C175)","v":0}]
[]
[null,"salute","€ mensile *","annotazioni"]
[null,"medicinali"]
[null,"spese per diete particolari"]
[null,"dentista, oculista ecc."]
[null,"sedia a rotelle, oggetti di aiuto"]
[null,"terapie/ticket"]
[null,"altro"]
[null,"somma salute",{"$f":"SUM(C179:C184)","v":0}]
[]
[null,"sociale e cultura","€ mensile *","annotazioni"]
[null,"ferie"]
[null,"hobby (musica, sport ecc..)"]
[null,"divertimento"]
[null,"attività culturali"]
[null,"altre attivitá"]
[null,"somma sociale e cultura",{"$f":"SUM(C188:C192)","v":0}]
[]
[null,"spese mantenimento nucleo famigliare","€ mensile *","annotazioni"]
[null,"alimentari, bibite…"]
[null,"ristoro - mensa,bar,ristorante"]
[null,"prodotti di pulizia per la casa/igiene"]
[null,"animali domestici (mangime, veterinario)"]
[null,"aiuto domestico (donne delle pulizie, badante, ..)"]
[null,"altro"]
[null,"somma spese mantenimento nucleo famigliare",{"$f":"SUM(C196:C201)","v":0}]
[]
[]
[]
[]
[]
[]
[]
[]
[null,"abitare","€ mensile *","annotazioni"]
[null,"mobili"]
[null,"oggetti per la casa"]
[null,"giardinaggio"]
[null,"spese manutenzione casa, riparazioni"]
[null,"altro"]
[null,"somma spese abitare",{"$f":"SUM(C212:C216)","v":0}]
[]
[null,"spese personali","€ mensile *","annotazioni"]
[null,"cura del corpo, cosmetici"]
[null,"parrucchiere"]
[null,"fumare"]
[null,"regali (natale, compleanni..)"]
[null,"altro"]
[null,"somma spese personali",{"$f":"SUM(C220:C224)","v":0}]
[]
[null,"somma spese variabili",{"$f":"C225+C217+C202+C193+C185+C176","v":0}]
[]
[null,"somma spese totali",{"$f":"C227+C153","v":0}]
[]
[null,"differenza tra entrate e uscite",{"$f":"C33-C229","v":0}]
[]
[]
[null,"* Attenzione: calcolate le entrate e spese, che non risultano ogni mese, "]
[null,"in un’ importo mensile medio."]

{"sheet":"Tabelle2","index":2,"n_rows":0,"n_cols":0,"rows_kept":0,"cut":false,"hidden":false,"merged":[]}

{"sheet":"Tabelle3","index":3,"n_rows":0,"n_cols":0,"rows_kept":0,"cut":false,"hidden":false,"merged":[]}